[Event "*** Titled Tuesday Blitz"]
[Site "Chess.com"]
[Date "2018.11.06"]
[Round "1"]
[White "m3alam"]
[Black "Lagmantr"]
[Result "0-1"]
[WhiteElo "2133"]
[BlackElo "2520"]
[TimeControl "180+2"]
[EndTime "13:08:19 PST"]
[Termination "Lagmantr won by resignation"]

1. d4 {[%clk 0:03:01.9]} 1... d5 {[%clk 0:02:52.4]} 2. Nf3 {[%clk 0:03:03]} 2...
Nf6 {[%clk 0:02:51.5]} 3. c4 {[%clk 0:03:04.2]} 3... e6 {[%clk 0:02:52.4]} 4. g3
{[%clk 0:03:04.3]} 4... dxc4 {[%clk 0:02:47.2]} 5. Bg2 {[%clk 0:03:02.4]} 5...
Bb4+ {[%clk 0:02:47.9]} 6. Bd2 {[%clk 0:03:01.6]} 6... c5 {[%clk 0:02:48.2]} 7.
O-O {[%clk 0:02:31.8]} 7... O-O {[%clk 0:02:36]} 8. dxc5 {[%clk 0:02:23.7]} 8...
Bxc5 {[%clk 0:02:33.7]} 9. Qc2 {[%clk 0:02:20.1]} 9... Nc6 {[%clk 0:02:17.3]}
10. Qxc4 {[%clk 0:02:19.5]} 10... Qb6 {[%clk 0:02:17.7]} 11. Bc3 {[%clk
0:02:15.6]} 11... Nd5 {[%clk 0:02:13.5]} 12. b3 {[%clk 0:01:50]} 12... Bd7
{[%clk 0:02:06]} 13. Bb2 {[%clk 0:01:48]} 13... Rac8 {[%clk 0:02:06.4]} 14. Nc3
{[%clk 0:01:42.2]} 14... Nxc3 {[%clk 0:01:23.8]} 15. Qxc3 {[%clk 0:01:39.8]}
15... f6 {[%clk 0:01:22.8]} 16. Rad1 {[%clk 0:01:37.5]} 16... Rfd8 {[%clk
0:01:20.8]} 17. Bh3 {[%clk 0:01:22.2]} 17... Nb4 {[%clk 0:01:13.3]} 18. Qd2
{[%clk 0:01:02.9]} 18... Bb5 {[%clk 0:01:05.3]} 19. Bd4 {[%clk 0:00:36.2]} 19...
Bxd4 {[%clk 0:00:24.6]} 20. Qxb4 {[%clk 0:00:34.8]} 20... Bxe2 {[%clk
0:00:21.5]} 21. Qxb6 {[%clk 0:00:35]} 21... Bxb6 {[%clk 0:00:22.5]} 22. Bxe6+
{[%clk 0:00:35.3]} 22... Kf8 {[%clk 0:00:23.6]} 23. Bxc8 {[%clk 0:00:35.8]}
23... Rxc8 {[%clk 0:00:24.5]} 24. Rc1 {[%clk 0:00:31.7]} 24... Rxc1 {[%clk
0:00:25.1]} 25. Rxc1 {[%clk 0:00:31.8]} 25... Bxf3 {[%clk 0:00:27]} 26. Rc8+
{[%clk 0:00:32.9]} 26... Ke7 {[%clk 0:00:27.3]} 27. Rg8 {[%clk 0:00:32.2]} 27...
Kf7 {[%clk 0:00:28.5]} 28. Rh8 {[%clk 0:00:32.7]} 28... h6 {[%clk 0:00:28.8]}
29. h4 {[%clk 0:00:34.6]} 29... Bc6 {[%clk 0:00:29.5]} 30. Rb8 {[%clk
0:00:32.2]} 30... a5 {[%clk 0:00:30.3]} 31. a4 {[%clk 0:00:33.1]} 31... g5
{[%clk 0:00:31.2]} 32. hxg5 {[%clk 0:00:32.2]} 32... hxg5 {[%clk 0:00:33.1]} 33.
Kf1 {[%clk 0:00:31.5]} 33... Ke6 {[%clk 0:00:34.2]} 34. Rh8 {[%clk 0:00:30.3]}
34... Kd6 {[%clk 0:00:35.2]} 35. Rf8 {[%clk 0:00:30.5]} 35... Bd4 {[%clk
0:00:35.2]} 36. f4 {[%clk 0:00:30.5]} 36... gxf4 {[%clk 0:00:35.7]} 37. gxf4
{[%clk 0:00:31.5]} 37... Kc5 {[%clk 0:00:37]} 38. Ke2 {[%clk 0:00:29.3]} 38...
Kb4 {[%clk 0:00:37.9]} 39. Kd3 {[%clk 0:00:30.6]} 39... Ba1 {[%clk 0:00:38.3]}
40. Kc2 {[%clk 0:00:30.7]} 40... Be4+ {[%clk 0:00:39.1]} 41. Kd2 {[%clk
0:00:29.9]} 41... Kxb3 {[%clk 0:00:40.2]} 42. Re8 {[%clk 0:00:28.4]} 42... f5
{[%clk 0:00:40.9]} 0-1

[Event "*** Titled Tuesday Blitz"]
[Site "Chess.com"]
[Date "2018.11.06"]
[Round "1"]
[White "Alliswell998"]
[Black "nochewycandy"]
[Result "1-0"]
[WhiteElo "2560"]
[BlackElo "2204"]
[TimeControl "180+2"]
[EndTime "13:08:20 PST"]
[Termination "Alliswell998 won by resignation"]

1. e4 {[%clk 0:03:01.9]} 1... g6 {[%clk 0:02:59.5]} 2. Nc3 {[%clk 0:03:00.8]}
2... Bg7 {[%clk 0:03:01.4]} 3. f4 {[%clk 0:03:01.2]} 3... c5 {[%clk 0:03:01]} 4.
Nf3 {[%clk 0:03:01.5]} 4... Nc6 {[%clk 0:03:01.5]} 5. Bb5 {[%clk 0:02:56.7]}
5... Nd4 {[%clk 0:03:01.4]} 6. O-O {[%clk 0:02:57.1]} 6... a6 {[%clk 0:02:56]}
7. Bd3 {[%clk 0:02:56.8]} 7... d6 {[%clk 0:02:49.5]} 8. Nxd4 {[%clk 0:02:56.7]}
8... cxd4 {[%clk 0:02:47.9]} 9. Ne2 {[%clk 0:02:57.5]} 9... Nf6 {[%clk
0:02:48.7]} 10. Kh1 {[%clk 0:02:57.3]} 10... O-O {[%clk 0:02:48.8]} 11. Nxd4
{[%clk 0:02:53.3]} 11... Nxe4 {[%clk 0:02:49.6]} 12. Bxe4 {[%clk 0:02:54.2]}
12... Bxd4 {[%clk 0:02:50.3]} 13. Qf3 {[%clk 0:02:49.5]} 13... Rb8 {[%clk
0:02:46.7]} 14. c3 {[%clk 0:02:50.4]} 14... Bg7 {[%clk 0:02:47.6]} 15. d4 {[%clk
0:02:51.3]} 15... b5 {[%clk 0:02:48.4]} 16. f5 {[%clk 0:02:49.8]} 16... d5
{[%clk 0:02:40.4]} 17. Bxd5 {[%clk 0:02:29.9]} 17... Bxf5 {[%clk 0:02:40.9]} 18.
g4 {[%clk 0:02:28.7]} 18... e6 {[%clk 0:02:12.5]} 19. Bb3 {[%clk 0:02:17.6]}
19... Re8 {[%clk 0:01:36.2]} 20. gxf5 {[%clk 0:02:16.2]} 20... exf5 {[%clk
0:01:36.6]} 21. Bf4 {[%clk 0:02:10.8]} 21... Rb6 {[%clk 0:01:23.9]} 22. Rae1
{[%clk 0:02:08.2]} 22... Rxe1 {[%clk 0:01:07.5]} 23. Rxe1 {[%clk 0:02:08.2]}
23... h6 {[%clk 0:01:07.8]} 24. Qe3 {[%clk 0:01:57.1]} 24... Kh7 {[%clk
0:01:06]} 25. Bxf7 {[%clk 0:01:51]} 25... g5 {[%clk 0:00:30.1]} 26. Be5 {[%clk
0:01:32.1]} 26... Qd7 {[%clk 0:00:19.2]} 27. Bxg7 {[%clk 0:01:31.1]} 27... Qxf7
{[%clk 0:00:20.3]} 28. Be5 {[%clk 0:01:23.7]} 28... Qxa2 {[%clk 0:00:20.8]} 29.
d5 {[%clk 0:01:21.1]} 29... Qxd5+ {[%clk 0:00:21.3]} 30. Kg1 {[%clk 0:01:22.1]}
30... Re6 {[%clk 0:00:22.4]} 31. Qa7+ {[%clk 0:01:21.5]} 31... Kg6 {[%clk
0:00:23.8]} 32. Qd4 {[%clk 0:01:09.8]} 32... Qf3 {[%clk 0:00:19.1]} 33. Qd7
{[%clk 0:00:51.8]} 33... Qg4+ {[%clk 0:00:16.2]} 34. Kf2 {[%clk 0:00:53.3]}
34... Rxe5 {[%clk 0:00:16.1]} 35. Qd6+ {[%clk 0:00:51.1]} 35... Kh5 {[%clk
0:00:17.5]} 36. Qxe5 {[%clk 0:00:50.7]} 36... Qh4+ {[%clk 0:00:18.9]} 37. Kg1
{[%clk 0:00:48.3]} 37... Qg4+ {[%clk 0:00:19.4]} 38. Qg3 {[%clk 0:00:49.3]}
38... Qc4 {[%clk 0:00:19.8]} 39. Qf3+ {[%clk 0:00:46.8]} 39... Kg6 {[%clk
0:00:20.2]} 40. Rd1 {[%clk 0:00:39.4]} 40... Qc5+ {[%clk 0:00:17.3]} 41. Qf2
{[%clk 0:00:38.9]} 41... Qe5 {[%clk 0:00:18.3]} 42. Re1 {[%clk 0:00:38.8]} 42...
Qd5 {[%clk 0:00:19]} 43. Qb6+ {[%clk 0:00:39.2]} 43... Kh5 {[%clk 0:00:20.1]}
44. Qd4 {[%clk 0:00:38.1]} 44... Qf3 {[%clk 0:00:20.6]} 45. Qd1 {[%clk
0:00:38.4]} 1-0

[Event "*** Titled Tuesday Blitz"]
[Site "Chess.com"]
[Date "2018.11.06"]
[Round "1"]
[White "ruvat"]
[Black "GadimbayliA"]
[Result "0-1"]
[WhiteElo "2301"]
[BlackElo "2638"]
[TimeControl "180+2"]
[EndTime "13:08:25 PST"]
[Termination "GadimbayliA won by resignation"]

1. d4 {[%clk 0:03:00.9]} 1... Nf6 {[%clk 0:02:58.6]} 2. c4 {[%clk 0:03:01.6]}
2... e6 {[%clk 0:02:59]} 3. g3 {[%clk 0:03:01.9]} 3... c5 {[%clk 0:02:58.7]} 4.
d5 {[%clk 0:02:59.9]} 4... exd5 {[%clk 0:03:00.6]} 5. cxd5 {[%clk 0:03:01.2]}
5... d6 {[%clk 0:03:01.7]} 6. Nc3 {[%clk 0:03:02.2]} 6... g6 {[%clk 0:03:02.9]}
7. Bg2 {[%clk 0:03:03.7]} 7... Bg7 {[%clk 0:03:04]} 8. Nf3 {[%clk 0:03:05.2]}
8... O-O {[%clk 0:03:05.2]} 9. O-O {[%clk 0:03:06.8]} 9... Nbd7 {[%clk
0:03:06.5]} 10. Bf4 {[%clk 0:03:06]} 10... Nb6 {[%clk 0:02:59.6]} 11. a4 {[%clk
0:02:52.2]} 11... Nh5 {[%clk 0:02:42.9]} 12. Bg5 {[%clk 0:02:50.8]} 12... Bf6
{[%clk 0:02:40.1]} 13. Bd2 {[%clk 0:02:42.3]} 13... Nc4 {[%clk 0:02:37.2]} 14.
Bc1 {[%clk 0:02:43.3]} 14... Re8 {[%clk 0:02:30.6]} 15. Qb3 {[%clk 0:02:21.1]}
15... Na5 {[%clk 0:02:24]} 16. Qc2 {[%clk 0:02:21.6]} 16... Bf5 {[%clk 0:02:21]}
17. e4 {[%clk 0:02:19.3]} 17... Bd7 {[%clk 0:02:12.3]} 18. h3 {[%clk 0:01:47.7]}
18... Qb6 {[%clk 0:01:54.9]} 19. g4 {[%clk 0:01:36.5]} 19... Ng7 {[%clk
0:01:54.6]} 20. Bf4 {[%clk 0:01:28.4]} 20... a6 {[%clk 0:01:24.8]} 21. Rfe1
{[%clk 0:01:24.4]} 21... Nc4 {[%clk 0:01:17.4]} 22. b3 {[%clk 0:01:06]} 22...
Ne5 {[%clk 0:01:09]} 23. Nxe5 {[%clk 0:01:05.6]} 23... Bxe5 {[%clk 0:01:10.1]}
24. Bxe5 {[%clk 0:01:05.7]} 24... Rxe5 {[%clk 0:01:01.6]} 25. Kh1 {[%clk
0:00:48.8]} 25... Rae8 {[%clk 0:00:55.4]} 26. f4 {[%clk 0:00:39.1]} 26... R5e7
{[%clk 0:00:56.5]} 27. Red1 {[%clk 0:00:20.6]} 27... h5 {[%clk 0:00:55.7]} 28.
g5 {[%clk 0:00:20.4]} 28... h4 {[%clk 0:00:55.4]} 29. Rab1 {[%clk 0:00:17.4]}
29... Nh5 {[%clk 0:00:56.3]} 30. Qf2 {[%clk 0:00:15.1]} 30... Ng3+ {[%clk
0:00:57.5]} 31. Kh2 {[%clk 0:00:15.7]} 31... Qb4 {[%clk 0:00:58]} 32. Rd3 {[%clk
0:00:13.8]} 32... b5 {[%clk 0:00:45]} 33. Rxg3 {[%clk 0:00:09.4]} 33... hxg3+
{[%clk 0:00:45.3]} 34. Qxg3 {[%clk 0:00:11.3]} 34... Qd4 {[%clk 0:00:30.9]} 35.
e5 {[%clk 0:00:10.8]} 35... dxe5 {[%clk 0:00:30.6]} 36. Rd1 {[%clk 0:00:09.3]}
36... exf4 {[%clk 0:00:25.7]} 37. Qf3 {[%clk 0:00:05.3]} 37... Qe3 {[%clk
0:00:26.8]} 38. Qg3 {[%clk 0:00:07.2]} 38... Qxg3+ {[%clk 0:00:27.3]} 0-1

[Event "*** Titled Tuesday Blitz"]
[Site "Chess.com"]
[Date "2018.11.06"]
[Round "1"]
[White "JeremDev"]
[Black "Paparama_1917"]
[Result "1-0"]
[WhiteElo "2309"]
[BlackElo "2573"]
[TimeControl "180+2"]
[EndTime "13:08:29 PST"]
[Termination "JeremDev won on time"]

1. e4 {[%clk 0:03:01.9]} 1... c5 {[%clk 0:03:00.4]} 2. d4 {[%clk 0:03:02.4]}
2... cxd4 {[%clk 0:02:59.1]} 3. c3 {[%clk 0:03:03.1]} 3... Nf6 {[%clk
0:02:57.7]} 4. e5 {[%clk 0:03:03.9]} 4... Nd5 {[%clk 0:02:58.4]} 5. Nf3 {[%clk
0:03:04.3]} 5... d6 {[%clk 0:02:57.4]} 6. exd6 {[%clk 0:03:02.7]} 6... Qxd6
{[%clk 0:02:56.5]} 7. Nxd4 {[%clk 0:03:03.6]} 7... a6 {[%clk 0:02:49.2]} 8. g3
{[%clk 0:03:03.7]} 8... e5 {[%clk 0:02:47.7]} 9. Nc2 {[%clk 0:03:01.2]} 9... Nc6
{[%clk 0:02:45.1]} 10. Bg2 {[%clk 0:03:01.2]} 10... Be6 {[%clk 0:02:45.5]} 11.
O-O {[%clk 0:03:01.7]} 11... f5 {[%clk 0:02:28.1]} 12. Nd2 {[%clk 0:02:57.8]}
12... O-O-O {[%clk 0:02:27.3]} 13. Nc4 {[%clk 0:02:58.3]} 13... Qc7 {[%clk
0:02:28]} 14. Qe2 {[%clk 0:02:50.2]} 14... Be7 {[%clk 0:02:23.7]} 15. N4e3
{[%clk 0:02:47.6]} 15... e4 {[%clk 0:02:20.6]} 16. Nxd5 {[%clk 0:02:46.6]} 16...
Rxd5 {[%clk 0:02:21.2]} 17. Bf4 {[%clk 0:02:47.9]} 17... Qb6 {[%clk 0:02:20.5]}
18. Ne3 {[%clk 0:02:46.9]} 18... Rd3 {[%clk 0:02:19.1]} 19. h4 {[%clk
0:02:41.4]} 19... Rhd8 {[%clk 0:02:15.4]} 20. Rfd1 {[%clk 0:02:37.4]} 20... Qb5
{[%clk 0:02:06.5]} 21. Rxd3 {[%clk 0:02:37.2]} 21... Qxd3 {[%clk 0:02:07]} 22.
Qh5 {[%clk 0:02:34.2]} 22... Qb5 {[%clk 0:01:48.3]} 23. Qxh7 {[%clk 0:02:18.1]}
23... Qxb2 {[%clk 0:01:42.5]} 24. Rf1 {[%clk 0:02:18.2]} 24... Bc5 {[%clk
0:01:05.9]} 25. Qxg7 {[%clk 0:02:14.8]} 25... Qb6 {[%clk 0:00:53.6]} 26. h5
{[%clk 0:02:09.9]} 26... Rd7 {[%clk 0:00:53.7]} 27. Qh8+ {[%clk 0:02:08.4]}
27... Rd8 {[%clk 0:00:51.5]} 28. Qf6 {[%clk 0:02:09.4]} 28... Ne7 {[%clk
0:00:49.2]} 29. Bh3 {[%clk 0:01:59.2]} 29... Bxa2 {[%clk 0:00:41.6]} 30. Qxb6
{[%clk 0:01:43.7]} 30... Bxb6 {[%clk 0:00:42.3]} 31. Nxf5 {[%clk 0:01:44.5]}
31... Kd7 {[%clk 0:00:16.5]} 32. Nxe7+ {[%clk 0:01:41.5]} 32... Kxe7 {[%clk
0:00:15.9]} 33. Bg5+ {[%clk 0:01:42.4]} 33... Kf7 {[%clk 0:00:15.2]} 34. Ra1
{[%clk 0:01:32.6]} 34... Rg8 {[%clk 0:00:12.4]} 35. Bf4 {[%clk 0:01:26.4]} 35...
Bc4 {[%clk 0:00:08.6]} 36. Rb1 {[%clk 0:01:25.6]} 36... Bc5 {[%clk 0:00:04.1]}
37. Rxb7+ {[%clk 0:01:24.7]} 37... Kf6 {[%clk 0:00:05.1]} 38. Rc7 {[%clk
0:01:24]} 38... e3 {[%clk 0:00:02.5]} 39. Rxc5 {[%clk 0:01:22.1]} 39... e2
{[%clk 0:00:02.3]} 40. Re5 {[%clk 0:01:20.8]} 1-0

[Event "*** Titled Tuesday Blitz"]
[Site "Chess.com"]
[Date "2018.11.06"]
[Round "1"]
[White "goingin33"]
[Black "Fins0905"]
[Result "0-1"]
[WhiteElo "2206"]
[BlackElo "2565"]
[TimeControl "180+2"]
[EndTime "13:08:37 PST"]
[Termination "Fins0905 won by resignation"]

1. e4 {[%clk 0:02:55.8]} 1... c5 {[%clk 0:02:59.4]} 2. Nf3 {[%clk 0:02:55.3]}
2... d6 {[%clk 0:02:56.7]} 3. d4 {[%clk 0:02:54.1]} 3... cxd4 {[%clk 0:02:58.6]}
4. Qxd4 {[%clk 0:02:55.1]} 4... Nc6 {[%clk 0:02:57.5]} 5. Bb5 {[%clk 0:02:55.3]}
5... Bd7 {[%clk 0:02:58.9]} 6. Bxc6 {[%clk 0:02:56.2]} 6... Bxc6 {[%clk
0:03:00.4]} 7. Bg5 {[%clk 0:02:56.5]} 7... Nf6 {[%clk 0:02:50]} 8. Nc3 {[%clk
0:02:56.9]} 8... e6 {[%clk 0:02:45.4]} 9. O-O-O {[%clk 0:02:57.6]} 9... Be7
{[%clk 0:02:44.9]} 10. Rhe1 {[%clk 0:02:49.7]} 10... O-O {[%clk 0:02:44.3]} 11.
Qd2 {[%clk 0:02:45.5]} 11... Qc7 {[%clk 0:02:17.4]} 12. Nd4 {[%clk 0:02:37.1]}
12... a6 {[%clk 0:02:13.5]} 13. f3 {[%clk 0:02:03.4]} 13... Rac8 {[%clk
0:02:06.7]} 14. g4 {[%clk 0:01:48.5]} 14... b5 {[%clk 0:02:04.8]} 15. h4 {[%clk
0:01:49]} 15... b4 {[%clk 0:02:03.1]} 16. Nce2 {[%clk 0:01:49.4]} 16... a5
{[%clk 0:01:34.2]} 17. Bxf6 {[%clk 0:01:36.1]} 17... Bxf6 {[%clk 0:01:32]} 18.
g5 {[%clk 0:01:37.1]} 18... Be7 {[%clk 0:01:30.4]} 19. h5 {[%clk 0:01:32.1]}
19... Bd7 {[%clk 0:01:23.8]} 20. Kb1 {[%clk 0:01:09.5]} 20... a4 {[%clk
0:01:08.6]} 21. Rc1 {[%clk 0:01:10]} 21... a3 {[%clk 0:01:06.5]} 22. b3 {[%clk
0:01:06.1]} 22... d5 {[%clk 0:00:58.1]} 23. exd5 {[%clk 0:01:00]} 23... exd5
{[%clk 0:01:00]} 24. c4 {[%clk 0:00:57.5]} 24... bxc3 {[%clk 0:00:53.8]} 25.
Rxc3 {[%clk 0:00:58.5]} 25... Qa5 {[%clk 0:00:45.1]} 26. Qd3 {[%clk 0:00:22.6]}
26... Bxg5 {[%clk 0:00:39.8]} 27. f4 {[%clk 0:00:19.5]} 27... Bxf4 {[%clk
0:00:32.4]} 28. Rg1 {[%clk 0:00:15.5]} 28... Be5 {[%clk 0:00:27.1]} 29. h6
{[%clk 0:00:14]} 29... g6 {[%clk 0:00:27]} 30. Rxc8 {[%clk 0:00:12.5]} 30...
Rxc8 {[%clk 0:00:26.7]} 31. Qe3 {[%clk 0:00:13.3]} 31... Re8 {[%clk 0:00:22.3]}
32. Rc1 {[%clk 0:00:07.9]} 32... Qb6 {[%clk 0:00:17]} 33. Qd2 {[%clk 0:00:07.8]}
33... Qf6 {[%clk 0:00:17]} 34. Qd3 {[%clk 0:00:03.1]} 34... Bg4 {[%clk
0:00:13.6]} 35. Rd1 {[%clk 0:00:02]} 35... Bxd4 {[%clk 0:00:12.9]} 36. Qxd4
{[%clk 0:00:02.1]} 36... Qxd4 {[%clk 0:00:13]} 37. Rxd4 {[%clk 0:00:02.9]} 37...
Bxe2 {[%clk 0:00:13.7]} 38. Rxd5 {[%clk 0:00:03.7]} 38... f5 {[%clk 0:00:14.7]}
39. Ra5 {[%clk 0:00:04.5]} 39... f4 {[%clk 0:00:15.1]} 40. Rxa3 {[%clk
0:00:05.6]} 40... f3 {[%clk 0:00:16.5]} 41. Ra7 {[%clk 0:00:06.2]} 41... f2
{[%clk 0:00:17.4]} 42. Ra6 {[%clk 0:00:07.4]} 42... Bxa6 {[%clk 0:00:17.1]} 43.
Kb2 {[%clk 0:00:09.3]} 43... f1=Q {[%clk 0:00:17.9]} 0-1

[Event "*** Titled Tuesday Blitz"]
[Site "Chess.com"]
[Date "2018.11.06"]
[Round "1"]
[White "wonderfultime"]
[Black "pastouche06"]
[Result "1-0"]
[WhiteElo "2837"]
[BlackElo "2432"]
[TimeControl "180+2"]
[EndTime "13:08:44 PST"]
[Termination "wonderfultime won by checkmate"]

1. d4 {[%clk 0:03:00.2]} 1... Nf6 {[%clk 0:02:58.4]} 2. Nf3 {[%clk 0:03:00.7]}
2... d5 {[%clk 0:02:59]} 3. Bf4 {[%clk 0:03:01.4]} 3... e6 {[%clk 0:02:58.8]} 4.
e3 {[%clk 0:03:02.6]} 4... Bd6 {[%clk 0:02:59.3]} 5. Bg3 {[%clk 0:03:03.5]} 5...
O-O {[%clk 0:02:59.5]} 6. Nbd2 {[%clk 0:03:03.7]} 6... c5 {[%clk 0:03:00.7]} 7.
c3 {[%clk 0:03:03.3]} 7... Qc7 {[%clk 0:03:01.4]} 8. Bd3 {[%clk 0:02:59.5]} 8...
Nbd7 {[%clk 0:03:01.5]} 9. O-O {[%clk 0:02:54.9]} 9... b6 {[%clk 0:03:01.1]} 10.
Rc1 {[%clk 0:02:47.2]} 10... Bxg3 {[%clk 0:02:56.2]} 11. hxg3 {[%clk 0:02:46]}
11... e5 {[%clk 0:02:57.8]} 12. dxe5 {[%clk 0:02:21.7]} 12... Nxe5 {[%clk
0:02:59.3]} 13. Nxe5 {[%clk 0:02:21.5]} 13... Qxe5 {[%clk 0:03:01.2]} 14. Re1
{[%clk 0:02:21.4]} 14... Bb7 {[%clk 0:02:37.7]} 15. Qa4 {[%clk 0:02:18.1]} 15...
a6 {[%clk 0:02:27.8]} 16. b4 {[%clk 0:02:14.8]} 16... Rfc8 {[%clk 0:01:43.1]}
17. bxc5 {[%clk 0:02:12.6]} 17... Rxc5 {[%clk 0:01:43.3]} 18. Qb4 {[%clk
0:02:11.5]} 18... Nd7 {[%clk 0:01:16.3]} 19. Nf3 {[%clk 0:01:58.5]} 19... Qc7
{[%clk 0:01:12.7]} 20. a4 {[%clk 0:01:17.6]} 20... Rc8 {[%clk 0:01:07.8]} 21.
Bf5 {[%clk 0:01:17.1]} 21... Rc4 {[%clk 0:00:43.1]} 22. Qb1 {[%clk 0:01:16.4]}
22... g6 {[%clk 0:00:42.6]} 23. Bxd7 {[%clk 0:01:16.1]} 23... Qxd7 {[%clk
0:00:44.5]} 24. Ne5 {[%clk 0:01:14.9]} 24... Qd6 {[%clk 0:00:39.4]} 25. Nxc4
{[%clk 0:01:14.6]} 25... dxc4 {[%clk 0:00:41.3]} 26. Rcd1 {[%clk 0:01:14.8]}
26... Qc6 {[%clk 0:00:42.3]} 27. e4 {[%clk 0:01:15.5]} 27... Qc5 {[%clk
0:00:42.7]} 28. Rd4 {[%clk 0:01:11.4]} 28... Re8 {[%clk 0:00:43]} 29. Qa2 {[%clk
0:01:07.2]} 29... b5 {[%clk 0:00:43.3]} 30. axb5 {[%clk 0:01:09.1]} 30... axb5
{[%clk 0:00:45.2]} 31. Qd2 {[%clk 0:01:10.9]} 31... Kg7 {[%clk 0:00:43.7]} 32.
Rd7 {[%clk 0:01:08.5]} 32... Bxe4 {[%clk 0:00:37.8]} 33. Re3 {[%clk 0:00:26]}
33... Re6 {[%clk 0:00:34.2]} 34. Rd4 {[%clk 0:00:21.5]} 34... Bf5 {[%clk
0:00:34]} 35. Rd5 {[%clk 0:00:22.9]} 35... Qa7 {[%clk 0:00:28.2]} 36. Rxe6
{[%clk 0:00:22]} 36... Bxe6 {[%clk 0:00:28]} 37. Rxb5 {[%clk 0:00:23.2]} 37...
Qa1+ {[%clk 0:00:29.1]} 38. Kh2 {[%clk 0:00:24.5]} 38... Qf1 {[%clk 0:00:28.9]}
39. Qd4+ {[%clk 0:00:25.2]} 39... Kh6 {[%clk 0:00:27.7]} 40. g4 {[%clk
0:00:25.2]} 40... Qc1 {[%clk 0:00:24.2]} 41. Rh5+ {[%clk 0:00:20.1]} 41... gxh5
{[%clk 0:00:24.8]} 42. Qf6# {[%clk 0:00:21.2]} 1-0

[Event "*** Titled Tuesday Blitz"]
[Site "Chess.com"]
[Date "2018.11.06"]
[Round "1"]
[White "VerdeNotte"]
[Black "Vamostodorecto"]
[Result "1-0"]
[WhiteElo "2830"]
[BlackElo "2425"]
[TimeControl "180+2"]
[EndTime "13:08:52 PST"]
[Termination "VerdeNotte won by checkmate"]

1. Nf3 {[%clk 0:02:54.3]} 1... d5 {[%clk 0:02:59.2]} 2. b3 {[%clk 0:02:54]} 2...
Nc6 {[%clk 0:02:51.3]} 3. Bb2 {[%clk 0:02:53.8]} 3... Bg4 {[%clk 0:02:51.4]} 4.
e3 {[%clk 0:02:48.6]} 4... e5 {[%clk 0:02:44.8]} 5. h3 {[%clk 0:02:48.8]} 5...
Bxf3 {[%clk 0:02:41.7]} 6. Qxf3 {[%clk 0:02:50.7]} 6... a6 {[%clk 0:02:30.9]} 7.
g3 {[%clk 0:02:45.7]} 7... Nf6 {[%clk 0:02:24]} 8. Bg2 {[%clk 0:02:46.7]} 8...
Be7 {[%clk 0:02:15.5]} 9. Nc3 {[%clk 0:02:47.3]} 9... e4 {[%clk 0:01:57.3]} 10.
Qe2 {[%clk 0:02:47.9]} 10... O-O {[%clk 0:01:54.7]} 11. d3 {[%clk 0:02:48.8]}
11... exd3 {[%clk 0:01:52.1]} 12. Qxd3 {[%clk 0:02:50.1]} 12... d4 {[%clk
0:01:52.7]} 13. exd4 {[%clk 0:02:50.5]} 13... Nb4 {[%clk 0:01:47.8]} 14. Qd2
{[%clk 0:02:50.5]} 14... Qxd4 {[%clk 0:01:44.8]} 15. O-O-O {[%clk 0:02:50.2]}
15... Qxd2+ {[%clk 0:01:35.8]} 16. Rxd2 {[%clk 0:02:52.1]} 16... Rab8 {[%clk
0:01:34.1]} 17. Re1 {[%clk 0:02:43.3]} 17... Rfe8 {[%clk 0:01:25.2]} 18. Rde2
{[%clk 0:02:43.6]} 18... Bc5 {[%clk 0:01:22]} 19. Rxe8+ {[%clk 0:02:39.9]} 19...
Rxe8 {[%clk 0:01:18.4]} 20. Rxe8+ {[%clk 0:02:40.5]} 20... Nxe8 {[%clk
0:01:20.2]} 21. Bxb7 {[%clk 0:02:41.8]} 21... Nd6 {[%clk 0:01:11.2]} 22. Bg2
{[%clk 0:02:38.6]} 22... Bxf2 {[%clk 0:00:52.8]} 23. a3 {[%clk 0:02:39.5]} 23...
a5 {[%clk 0:00:54.3]} 24. axb4 {[%clk 0:02:40.3]} 24... axb4 {[%clk 0:00:56.2]}
25. Nd5 {[%clk 0:02:41.6]} 25... Bxg3 {[%clk 0:00:52.6]} 26. Nxb4 {[%clk
0:02:40.9]} 26... h5 {[%clk 0:00:36.3]} 27. Nd5 {[%clk 0:02:41.7]} 27... Nf5
{[%clk 0:00:35.2]} 28. Be4 {[%clk 0:02:38.2]} 28... Nh4 {[%clk 0:00:31.2]} 29.
b4 {[%clk 0:02:34]} 29... f5 {[%clk 0:00:31.3]} 30. Ne7+ {[%clk 0:02:34.7]}
30... Kf7 {[%clk 0:00:26.8]} 31. Nxf5 {[%clk 0:02:36.6]} 31... Nxf5 {[%clk
0:00:26.5]} 32. Bxf5 {[%clk 0:02:38.5]} 32... g5 {[%clk 0:00:26.2]} 33. c4
{[%clk 0:02:38.7]} 33... Ke7 {[%clk 0:00:23.9]} 34. Kc2 {[%clk 0:02:39.5]} 34...
Kd6 {[%clk 0:00:22.9]} 35. Kd3 {[%clk 0:02:40.5]} 35... Be1 {[%clk 0:00:19.8]}
36. Bc3 {[%clk 0:02:41.4]} 36... Bf2 {[%clk 0:00:17.9]} 37. Ke4 {[%clk
0:02:42.1]} 37... g4 {[%clk 0:00:16.3]} 38. hxg4 {[%clk 0:02:42.8]} 38... hxg4
{[%clk 0:00:18.2]} 39. Be5+ {[%clk 0:02:43.3]} 39... Kc6 {[%clk 0:00:18.3]} 40.
Bxg4 {[%clk 0:02:45.2]} 40... Be1 {[%clk 0:00:16.4]} 41. b5+ {[%clk 0:02:46.4]}
41... Kc5 {[%clk 0:00:17.4]} 42. Kd3 {[%clk 0:02:44.9]} 42... c6 {[%clk
0:00:15.9]} 43. Bd4+ {[%clk 0:02:45.4]} 43... Kd6 {[%clk 0:00:16.7]} 44. c5+
{[%clk 0:02:47.3]} 44... Kc7 {[%clk 0:00:16.1]} 45. bxc6 {[%clk 0:02:48.3]}
45... Kxc6 {[%clk 0:00:16.8]} 46. Kc4 {[%clk 0:02:49.7]} 46... Kc7 {[%clk
0:00:17.7]} 47. Bf3 {[%clk 0:02:51.5]} 47... Bg3 {[%clk 0:00:17.8]} 48. Kd5
{[%clk 0:02:52.8]} 48... Kc8 {[%clk 0:00:18.4]} 49. Be5 {[%clk 0:02:52.8]} 49...
Bf2 {[%clk 0:00:18.6]} 50. Kc6 {[%clk 0:02:53.3]} 50... Bxc5 {[%clk 0:00:18.2]}
51. Kxc5 {[%clk 0:02:54.3]} 51... Kd7 {[%clk 0:00:19.2]} 52. Bd5 {[%clk
0:02:54.8]} 52... Ke7 {[%clk 0:00:20.2]} 53. Kc6 {[%clk 0:02:55.8]} 53... Kf8
{[%clk 0:00:20.6]} 54. Kd6 {[%clk 0:02:53.3]} 54... Ke8 {[%clk 0:00:20.2]} 55.
Bb7 {[%clk 0:02:53.2]} 55... Kf7 {[%clk 0:00:21.1]} 56. Kd7 {[%clk 0:02:53.9]}
56... Kg6 {[%clk 0:00:22]} 57. Ke6 {[%clk 0:02:55.4]} 57... Kg5 {[%clk 0:00:23]}
58. Bf3 {[%clk 0:02:56.4]} 58... Kh4 {[%clk 0:00:23.6]} 59. Bf4 {[%clk
0:02:56.1]} 59... Kh3 {[%clk 0:00:23.1]} 60. Kf5 {[%clk 0:02:45.9]} 60... Kh4
{[%clk 0:00:23.6]} 61. Be5 {[%clk 0:02:41.4]} 61... Kh3 {[%clk 0:00:24.5]} 62.
Kf4 {[%clk 0:02:42.9]} 62... Kh4 {[%clk 0:00:24.4]} 63. Bf6+ {[%clk 0:02:44]}
63... Kh3 {[%clk 0:00:25.2]} 64. Be4 {[%clk 0:02:44.7]} 64... Kh2 {[%clk
0:00:25.3]} 65. Kg4 {[%clk 0:02:44.7]} 65... Kg1 {[%clk 0:00:25.7]} 66. Kf3
{[%clk 0:02:40.3]} 66... Kh2 {[%clk 0:00:25.2]} 67. Bf5 {[%clk 0:02:40.2]} 67...
Kg1 {[%clk 0:00:25.7]} 68. Bh3 {[%clk 0:02:36]} 68... Kh2 {[%clk 0:00:06]} 69.
Kg4 {[%clk 0:02:36.8]} 69... Kg1 {[%clk 0:00:07.1]} 70. Kg3 {[%clk 0:02:37.5]}
70... Kh1 {[%clk 0:00:07.1]} 71. Bg2+ {[%clk 0:02:38.6]} 71... Kg1 {[%clk
0:00:07.3]} 72. Bd4# {[%clk 0:02:40.5]} 1-0